Cogmind - Beta 10.1 @@@ ROGUE MODE // 2020.09.30 @ 14:35:44 Player: Cracklepappy Result: Destroyed by DAS Turret with DAS Cannon Performance ------------- Evolutions (1) 500 Regions Visited (5) 1000 Robots Destroyed (91) 455 Value Destroyed (1723) 1723 Prototype IDs (30) 600 Alien Tech Used (0) 0 Bonus (370) 370 TOTAL SCORE: 4648 Bonus ------- High Alert Combat Kills 70 Aligned with FarCom 300 Cogmind --------- Core Integrity 0/400 Matter 280/300 Energy 35/100 System Corruption 1% Temperature Cool (154) Movement Treading (240) Ox4 Location -9/Exiles Parts ------- > --- POWER (1) -------- (None) > --- PROPULSION (2) --- Light Treads Light Treads > --- UTILITY (4) ------ Humpback Humpback > --- WEAPON (2) ------- Firepult > --- INVENTORY (44) --- Light Treads Armored Wheel Humpback Gravity Neutralizing Apparatus Shock Absorption System AS-neutralizer No. 17b Light Assault Rifle Heavy Assault Rifle Shock Bomb Launcher Shock Bomb Launcher Rocket Launcher Katana Peak State ------------ > --- POWER ------------ Light Ion Engine > --- PROPULSION ------- Light Treads Light Treads > --- UTILITY ---------- Humpback Humpback > --- WEAPON ----------- Firepult > --- INVENTORY -------- Light Treads Light Treads Armored Wheel Humpback High-capacity Matter Pod Shock Absorption System Light Assault Rifle Heavy Assault Rifle Shock Bomb Launcher Shock Bomb Launcher Rocket Launcher Katana [Rating: 29] Favorites ----------- Power Light Ion Engine Engine Light Ion Engine Propulsion Light Treads Treads Light Treads Wheel Armored Wheel Utility Large Storage Unit Device Shock Absorption System Storage Large Storage Unit Protection Light Armor Plating Weapon Heavy Assault Rifle Energy Gun EM Pulse Gun Energy Cannon Firepult Ballistic Gun Heavy Assault Rifle Ballistic Cannon Light Cannon Launcher EMP Blaster Special Weapon Plasma Cutter Slashing Weapon Katana Build | -11 -10 -10 -9 -9 -9 ------- Run | Scr Mat Min Mat Min Exi Slots Evolved 2 | . . . 2 . . Power . | . . . . . . Propulsion . | . . . . . . Utility 2 | . . . 2 . . Weapon . | . . . . . . Parts Attached 76 | 7 10 10 20 7 22 Power 8 | 1 2 1 2 1 1 Engine 8 | 1 2 1 2 1 1 Core . | . . . . . . Reactor . | . . . . . . Propulsion 17 | 2 2 2 8 . 3 Treads 8 | 1 1 1 2 . 3 Leg . | . . . . . . Wheel 9 | 1 1 1 6 . . Hover . | . . . . . . Flight . | . . . . . . Utility 21 | 2 3 . 5 1 10 Device 3 | . . . 1 . 2 Storage 13 | 2 3 . 2 . 6 Processor . | . . . . . . Hackware . | . . . . . . Protection 5 | . . . 2 1 2 Artifact . | . . . . . . Weapon 30 | 2 3 7 5 5 8 Energy Gun 3 | . . 1 2 . . Energy Cannon 3 | . . . . . 3 Ballistic Gun 13 | 2 1 3 1 3 3 Ballistic Cannon 2 | . 1 1 . . . Launcher 6 | . 1 1 2 2 . Special Weapon 2 | . . 1 . . 1 Impact Weapon . | . . . . . . Slashing Weapon 1 | . . . . . 1 Piercing Weapon . | . . . . . . Special Melee Weapon . | . . . . . . Unidentified Prototypes 3 | . . . 1 . 2 Parts Lost 29 | . 6 6 6 3 8 Power 7 | . 2 1 1 1 2 Propulsion 8 | . 2 2 2 . 2 Utility 4 | . . . 1 2 1 Weapon 10 | . 2 3 2 . 3 Highest Loss Streak 6 | . 5 3 3 1 6 Average Slot Usage (%) 91 | . 95 94 98 97 82 Engine 10 | . 10 13 10 10 9 Treads 13 | . 14 9 4 11 19 Wheel 9 | . 13 13 16 11 2 Storage 25 | . 28 28 32 33 16 Protection 8 | . . . 10 9 13 Energy Gun 1 | . . . 8 . . Ballistic Gun 19 | . 23 21 7 21 20 Ballistic Cannon 1 | . 3 5 . . . Launcher 1 | . 1 . 5 . . Naked Turns . | . . . . . . Heaviest Build 182 | 14 42 42 79 80 182 Greatest Support 40 | 16 20 10 28 12 40 Greatest Overweight (x) 14 | . 4 4 7 6 14 Average Overweight (x) 3 | . 1 3 3 6 3 Largest Inventory Capacity 44 | 8 16 16 24 24 44 Average Capacity 21 | 6 10 16 23 24 27 Most Carried 26 | 8 16 16 24 24 26 Average Carried 18 | 2 9 15 22 23 21 Final Capacity 44 | 8 16 16 24 24 44 Final Carried 24 | 8 16 16 24 24 13 Class Distribution -------------------- 65% | Hauler-Mutant 28% | Mutant 6% | Scavenger-Mutant Dominant Class ---------------- Mutant | -10/Materials Mutant | -10/Mines Hauler-Mutant | -9/Materials Hauler-Mutant | -9/Mines Hauler-Mutant | -9/Exiles Resources | -11 -10 -10 -9 -9 -9 ----------- Run | Scr Mat Min Mat Min Exi Matter Collected 2146 | 240 354 497 341 326 388 Remotely . | . . . . . . Salvage Created 2627 | 102 587 136 1183 500 119 Parts 175 | 9 50 3 76 34 3 Haulers Intercepted 5 | . 2 . 3 . . Recyclers Shooed 1 | . 1 . . . . Parts Field Recycled . | . . . . . . Retrieved Matter . | . . . . . . Parts Self-Destructed . | . . . . . . Prevented . | . . . . . . Kills | -11 -10 -10 -9 -9 -9 ------- Run | Scr Mat Min Mat Min Exi Combat Hostiles Destroyed 67 | . 14 10 20 21 2 Guns 40 | . 10 6 8 14 2 Cannons 5 | . 1 4 . . . AOE 21 | . 3 . 11 7 . Classes Destroyed 12 | 2 6 1 3 . . Worker 5 | . 2 . 2 1 . Builder 4 | . . . 4 . . Tunneler 3 | 2 . . 1 . . Hauler 5 | . 2 . 3 . . Recycler 1 | 1 . . . . . Operator 1 | . 1 . . . . Watcher 5 | . 2 . 3 . . Swarmer 28 | . 3 2 8 15 . Grunt 24 | . 11 . 7 6 . Duelist 1 | . . . 1 . . Sentry 4 | . . . 4 . . Assembled 9 | . . 8 . . 1 Best Kill Streak 9 | 2 9 2 8 4 1 Combat Bots Only 5 | . 4 2 5 4 1 Max Kills in Single Turn 5 | 1 4 1 5 2 1 Gunslinging . | . . . . . . Exploded 3 | . 2 . 3 2 . Melee . | . . . . . . Uniques/NPCs Destroyed 1 | . . . . . 1 8R-AWN (-9/Exiles) Combat | -11 -10 -10 -9 -9 -9 -------- Run | Scr Mat Min Mat Min Exi Damage Taken 4587 | . 866 620 886 575 1640 Core 655 | . 141 49 82 77 306 Absorbed by Shields . | . . . . . . Core Remaining (%) 62 | 100 . 24 . . . Volleys Fired 283 | 4 70 39 77 43 50 Largest 2 | 2 2 2 2 2 2 Hottest 250 | 40 55 70 85 46 250 Shots Fired 502 | 8 139 75 111 77 92 Gun 439 | 8 131 63 81 68 88 Cannon 16 | . 1 11 . . 4 Launcher 47 | . 7 1 30 9 . Special . | . . . . . . Kinetic 395 | 8 132 68 31 68 88 Thermal 10 | . . 6 . . 4 Explosive 12 | . 7 1 1 3 . Electromagnetic 85 | . . . 79 6 . Robot Hit Streak 25 | 3 11 5 16 21 25 Robot Miss Streak 6 | 1 6 4 4 2 2 Penetration Max . | . . . . . . Secondary Targets 7 | . 3 1 . 3 . Max Gunslinging Chain 1 | . 1 1 . 1 . Shots Hit Robots 348 | 6 85 41 81 53 82 Core Hits 164 | 5 41 22 50 27 19 Critical Hits 2 | . . . . . 2 Critical Kills . | . . . . . . Critical Parts Destroyed . | . . . . . . Melee Attacks 6 | . . . . . 6 Impact . | . . . . . . Slashing 6 | . . . . . 6 Piercing . | . . . . . . Sneak Attacks . | . . . . . . Combat Hostiles . | . . . . . . Follow-up Attacks . | . . . . . . Damage Inflicted 6036 | 78 1265 404 1950 1082 1257 Guns 3440 | 78 897 271 688 562 944 Cannons 187 | . 16 91 . . 80 Explosions 2321 | . 352 42 1262 520 145 Melee 88 | . . . . . 88 Ramming . | . . . . . . Kinetic 3047 | 78 913 299 251 562 944 Thermal 592 | . . 63 304 . 225 Explosive 806 | . 352 42 25 387 . Electromagnetic 1503 | . . . 1370 133 . Impact . | . . . . . . Slashing 88 | . . . . . 88 Piercing . | . . . . . . Highest Corruption 1 | . . . . 1 1 Average Corruption 1 | . . . . 1 1 Corruption Purged . | . . . . . . Effects 11 | . . . . 4 7 Message Errors 6 | . . . . 3 3 Energy Discharges 1 | . . . . . 1 Data Loss (minor) 2 | . . . . . 2 Targeting Errors 2 | . . . . 1 1 Overload Shots . | . . . . . . Overflow Damage 142 | . 10 23 80 29 . Projectiles . | . . . . . . Explosions 142 | . 10 23 80 29 . Melee . | . . . . . . Knockbacks . | . . . . . . Impact . | . . . . . . Kinetic . | . . . . . . Secondary . | . . . . . . Self-Inflicted Damage 211 | . 105 31 39 19 17 Shots 12 | . 6 1 2 1 2 Rammed . | . . . . . . Targets Rammed . | . . . . . . Kicked . | . . . . . . Crushed . | . . . . . . Highest Temperature 278 | . 19 80 195 4 278 Average Temperature 52 | . 9 20 64 3 123 Received Heat Transfer 838 | . 384 40 264 150 . Effects 1 | . . . . . 1 Energy Bleed 1 | . . . . . 1 Siege Activations . | . . . . . . Robots Corrupted 1 | . . . 1 . . Combat Hostiles 1 | . . . 1 . . Parts Fried 5 | . . . 4 1 . Impact Corruptions . | . . . . . . Robots Melted . | . . . . . . Combat Hostiles . | . . . . . . Parts Melted 1 | . . . 1 . . Heat Transferred 1315 | . . 185 450 . 680 Parts Sabotaged . | . . . . . . Parts Stolen . | . . . . . . Parts Stripped . | . . . . . . Power Chain Reactions 11 | . . . 10 1 . Missiles Intercepted . | . . . . . . Alert | -11 -10 -10 -9 -9 -9 ------- Run | Scr Mat Min Mat Min Exi Peak Influence 555 | 15 321 69 555 534 . Initial 79 | . 9 69 . 79 . Average 184 | 5 121 45 194 362 . Maximum Alert Level 2 | . 1 . 2 2 . Low Security (%) 58 | 100 87 100 49 1 . Level 1 34 | . 12 . 43 77 . Level 2 7 | . . . 7 20 . Level 3 . | . . . . . . Level 4 . | . . . . . . Level 5 . | . . . . . . High Security . | . . . . . . Max Security . | . . . . . . Squads Dispatched 7 | . 5 . 2 . . Investigation 4 | . 4 . . . . Extermination . | . . . . . . Reinforcement 3 | . 1 . 2 . . Assault . | . . . . . . Garrison . | . . . . . . Intercept . | . . . . . . Construction Impeded . | . . . . . . Haulers Reinforced . | . . . . . . Stealth | -11 -10 -10 -9 -9 -9 --------- Run | Scr Mat Min Mat Min Exi Distress Signals 9 | . 2 2 5 . . Communications Jammed . | . . . . . . Distress Signals . | . . . . . . Times Spotted 111 | . 21 12 33 21 24 Peak Tracking Total 7 | . 6 3 7 4 5 Tactical Retreats 7 | . 1 . 3 . 3 Traps | -11 -10 -10 -9 -9 -9 ------- Run | Scr Mat Min Mat Min Exi Traps Triggered 2 | . 2 . . . . Indirectly . | . . . . . . Trap Hack Attempts . | . . . . . . Triggered . | . . . . . . Disarmed . | . . . . . . Reprogrammed . | . . . . . . Reused 2 | . . . . . 2 Traps Extracted . | . . . . . . Installed 4 | . . . . 1 3 Triggered . | . . . . . . Exploded 3 | . . . . . 3 Machines | -11 -10 -10 -9 -9 -9 ---------- Run | Scr Mat Min Mat Min Exi Machines Disabled 23 | . 2 1 5 7 8 Max in Single Turn 4 | . 1 1 1 3 4 Machines Sabotaged . | . . . . . . Garrisons Compromised . | . . . . . . Overloaded Fab Kills . | . . . . . . Fab Network Shutdowns . | . . . . . . Hacking | -11 -10 -10 -9 -9 -9 --------- Run | Scr Mat Min Mat Min Exi Machines Accessed 12 | . 6 1 3 . 2 Terminals 7 | . 4 1 2 . . Fabricators . | . . . . . . Repair Stations . | . . . . . . Recycling Units 2 | . 2 . . . . Scanalyzers 1 | . . . 1 . . Garrison Access . | . . . . . . Total Hacks 37 | . 22 3 10 . 2 Successful 15 | . 6 1 6 . 2 Failed 22 | . 16 2 4 . . Catastrophic 2 | . . 1 1 . . Database Lockouts . | . . . . . . Manual 27 | . 19 3 4 . 1 Terminals 26 | . 15 3 8 . . Fabricators . | . . . . . . Repair Stations . | . . . . . . Recycling Units 7 | . 7 . . . . Scanalyzers 2 | . . . 2 . . Garrison Access . | . . . . . . Terminal Hacks 10 | . 3 1 4 . 2 Record 1 | . . . . . 1 Part Schematic 2 | . 2 . . . . Prototype ID Bank 2 | . 1 . 1 . . Branch Access Points 1 | . . . 1 . . Unreport Threat 3 | . . 1 2 . . EX-Prototype ID Bank 1 | . . . . . 1 Fabricator Hacks . | . . . . . . Repair Station Hacks . | . . . . . . Recycling Unit Hacks 1 | . 1 . . . . Retrieve Components 1 | . 1 . . . . Scanalyzer 2 | . . . 2 . . Insert Component 1 | . . . 1 . . Analyze 1 | . . . 1 . . Garrison Access Hacks . | . . . . . . Unauthorized Hacks 2 | . 2 . . . . Terminals 1 | . 1 . . . . Operators 1 | . 1 . . . . Fabricators . | . . . . . . Repair Stations . | . . . . . . Recycling Units 1 | . 1 . . . . Tunnel 1 | . 1 . . . . Scanalyzers . | . . . . . . Garrison Access . | . . . . . . Data Cores Recovered 1 | . 1 . . . . Used . | . . . . . . Hacking Detections 9 | . 5 1 3 . . Full Trace Events 2 | . 2 . . . . Feedback Events . | . . . . . . Feedback Blocked . | . . . . . . Robot Schematics Acquired . | . . . . . . Robots Built . | . . . . . . Matter . | . . . . . . Time . | . . . . . . Total Robot Build Rating . | . . . . . . Part Schematics Acquired 3 | . 2 . 1 . . Parts Built . | . . . . . . Matter . | . . . . . . Time . | . . . . . . Total Part Build Rating . | . . . . . . Parts Repaired . | . . . . . . Time . | . . . . . . Parts Recycled . | . . . . . . Recycled Matter . | . . . . . . Retrieved Matter . | . . . . . . Retrieved Components 10 | . 10 . . . . Parts Scanalyzed 1 | . . . 1 . . Part Schematics Acquired 1 | . . . 1 . . Parts Damaged . | . . . . . . Bothacking | -11 -10 -10 -9 -9 -9 ------------ Run | Scr Mat Min Mat Min Exi Used RIF Installer . | . . . . . . Robots Hacked . | . . . . . . Non-combat . | . . . . . . Combat . | . . . . . . Robot Hacks Applied . | . . . . . . Relay Couplers Released . | . . . . . . Robots Rewired . | . . . . . . Allies Hacked . | . . . . . . Hacks Repelled . | . . . . . . Allies | -11 -10 -10 -9 -9 -9 -------- Run | Scr Mat Min Mat Min Exi Total Allies 2 | . . 2 . . . Largest Group 2 | . . 2 2 . . Highest-Rated Group 38 | . . 38 38 . . Highest-Rated Ally 31 | . . 31 31 . . Total Orders . | . . . . . . Ally Attacks 7 | . . 2 5 . . Total Damage 63 | . . 43 20 . . Kills 1 | . . 1 . . . Allies Corrupted . | . . . . . . Allies Melted . | . . . . . . Intel | -11 -10 -10 -9 -9 -9 ------- Run | Scr Mat Min Mat Min Exi Robot Analysis Total . | . . . . . . Derelict Logs Recovered 2 | . . 1 . 1 . Drone Launches . | . . . . . . Drone Recoveries . | . . . . . . Exploration | -11 -10 -10 -9 -9 -9 ------------- Run | Scr Mat Min Mat Min Exi Turns Passed 5802 | 75 968 832 832 1022 2073 Spaces Moved 3015 | 47 623 407 430 560 948 Core 2 | 2 . . . . . Treads 703 | . 3 . 33 . 667 Legs . | . . . . . . Wheels 2310 | 45 620 407 397 560 281 Hover . | . . . . . . Flight . | . . . . . . Fastest Speed 50 | 50 90 110 110 150 150 Average Speed 145 | 97 104 111 131 150 191 Slowest Speed 240 | 100 160 120 220 150 240 Overloaded Moves . | . . . . . . Propulsion Burnouts . | . . . . . . Robots Hopped . | . . . . . . Cave-ins Triggered . | . . . . . . Exploration Rate (%) 61 | 5 90 66 41 95 71 Regions Visited 5 Branch Regions 3 Pre-discovered Areas 3 | . 1 . . 1 1 Known Exits Taken 1 | . . . 1 . . Unknown Exits Taken 4 | 1 1 1 . 1 . Scrap Searched 1 | . . . . 1 . Spaces Dug . | . . . . . . Terrain Destroyed 101 | . 20 8 40 20 13 Melee . | . . . . . . Projectile . | . . . . . . AOE 101 | . 20 8 40 20 13 Terrain Rammed . | . . . . . . Walls Destroyed . | . . . . . . Machines Disabled . | . . . . . . Actions | -11 -10 -10 -9 -9 -9 --------- Run | Scr Mat Min Mat Min Exi Total 3994 | 65 821 719 602 665 1122 Wait 456 | . 89 255 24 45 43 Move 3010 | 46 622 406 429 559 948 Hop . | . . . . . . Pick Up 87 | 8 20 8 31 6 14 Fast Attach 20 | 7 1 . 6 . 6 Attach 38 | . 5 8 8 2 15 Detach 9 | . . . . . 9 Swap 18 | . 4 2 6 5 1 Drop 63 | . 10 1 21 4 27 Fire 283 | 4 70 39 77 43 50 Melee 6 | . . . . . 6 Ram . | . . . . . . Kick . | . . . . . . Crush . | . . . . . . Escape Stasis . | . . . . . . Rewire . | . . . . . . Trap 4 | . . . . 1 3 Miscellaneous . | . . . . . . Route ------- -11/Scrapyard -10/Materials (discovered 4 exits: *Mat x3 / *Min) -10/Mines (discovered 2 exits: *Mat x2) -9/Materials (discovered 2 exits: Mat / *Min) -9/Mines (discovered 3 exits: *Mat x2 / *Exi) -9/Exiles (discovered 1 exit: [*Min]) History --------- Turn | Location | Event 23 | -11/Scrapyard | Discovered new exit (range 15) 76 | -11/Scrapyard | Entered Materials 302 | -10/Materials | Discovered new exit (range 15) 312 | -10/Materials | Build established: Mutant 586 | -10/Materials | Discovered new exit (range 15) 746 | -10/Materials | Core integrity fell below 50% 764 | -10/Materials | Discovered new exit (range 11) 780 | -10/Materials | Lost 5 parts (2p2n1w) 919 | -10/Materials | Discovered new exit (range 15) 1044 | -10/Materials | Entered Mines 1048 | -10/Mines | Assembled infested the area 1053 | -10/Mines | Assisted by a Guerilla fighting off Assembled 1134 | -10/Mines | Lost 3 parts (1n2w) 1461 | -10/Mines | Discovered new exit (range 9) 1720 | -10/Mines | Discovered new exit (range 16) 1737 | -10/Mines | A weapon hastily lodged in a ceiling crevice suddenly fell to the ground 1779 | -10/Mines | Learned location of 1 exit from Materials 1876 | -10/Mines | Entered Materials 1876 | -9/Materials | Accompanied by 2 allies 1876 | -9/Materials | Evolved 2 slots: Utility x2 1877 | -9/Materials | Identified exit to Materials 1881 | -9/Materials | Led the pair of lost Derelicts to an unsafe place 1927 | -9/Materials | Build established: Scavenger-Mutant 2131 | -9/Materials | Lost 3 parts (2n1w) 2313 | -9/Materials | Build established: Hauler-Mutant 2516 | -9/Materials | Identified exit to Mines 2708 | -9/Materials | Entered Mines 2842 | -9/Mines | Found a hidden stash of uninstalled traps 2861 | -9/Mines | Discovered exit to Materials (range 7) 3367 | -9/Mines | Deemed a non-threat by the Exiles lab entrance 3367 | -9/Mines | Discovered new exit (range 5) 3518 | -9/Mines | Learned location of Storage (-7) 3730 | -9/Mines | Entered Exiles 3766 | -9/Exiles | Met 8R-AWN 3792 | -9/Exiles | Met EX-HEX 3891 | -9/Exiles | Met EX-DEC 3923 | -9/Exiles | Learned location of Zion (-7) 4044 | -9/Exiles | Discovered new exit (range 10) 4542 | -9/Exiles | Met EX-BIN 4650 | -9/Exiles | Aligned with FarCom system 4652 | -9/Exiles | Given EX-Vault access code 4700 | -9/Exiles | Opened EX-Vault 4710 | -9/Exiles | Found Flying Fortress v7 4722 | -9/Exiles | Found Firepult 4769 | -9/Exiles | Warned to stay clear of 0b10 Research branches 5381 | -9/Exiles | Attacked by the Exiles 5507 | -9/Exiles | Core integrity fell below 50% 5564 | -9/Exiles | Lost 6 parts (1p1n1u3w) 5582 | -9/Exiles | Core integrity fell below 20% 5621 | -9/Exiles | Destroyed 8R-AWN 5633 | -9/Exiles | Found Prototype Device 5633 | -9/Exiles | Identified AS-neutralizer No. 17b 5803 | -9/Exiles | Destroyed by DAS Turret with DAS Cannon Last Messages --------------- 05615_ HV Slug penetrates Wall. 05619_ Penetrated by HV Slug. 05621_ 8R-AWN destroyed. 05629_ Acquired Prototype Device. 05629_ Identified Gravity Neutralizing Apparatus. 05633_ Acquired Prototype Device. 05633_ Identified AS-neutralizer No. 17b. 05635_ Acquired 103 matter. 05661_ Extracted 85 matter. 05713_ ,IMJD4FGPP/#OA%#AY G0QSGATPMLH9V 05785_ Firepult emits an uncontrolled burst of heat. 05785_ Several Firepult components seem to have fused. 05785_ Machine disabled. 05788_ DAS Turret heat damages core (-34). 05789_ Overheating: Energy bleed (-8). 05790_ DAS Turret heat damages core (-39). 05792_ DAS Turret heat spikes uncontrollably. 05795_ DAS Turret heat damages Prototype Ballistic Cannon. 05803_ Firepult emits a large uncontrolled burst of heat. 05803_ Machine disabled. Map ----- +----------------------------------------------------+ | ?????????????????? ## ????????????????????# # | | ??????????###???? #???????????????????## # | | ??????????#"##### #????????????????????#" | | ####??????# " #?????????????????????#" | | #""##?????# " #??????????????????????#" | | #?????# " #???????????????????????#" | | ##???## "#???????????##???????????#" | | #####" ! #???????????? """????????#" | | ## ###??????????" """#???????## | | # !### #??????????" ?????????# | | # #?????????"" ?????????#" | | ### #??????????"" "#????????#" | | ??### ! #?????????? ""?????????#" | | #### #???????????" "?????????##" # | | """"" ##??????????# #????????##"" # | | """ ######???### ###?######"" # | | ####" ""#####X# #"###""""""" # | | ##??#" """""" " "" | | ###???#"# "" """ " | | """###?????#### " " | | ####??????????### | | ????????????????### | | ??????????????????## | | ???????????????????## | | ????????????????????##" | | ?????????????????????#"""@ """""" | | ????????????????????##" ######""" | | ????????????????????#"" ""##????##### | | ????????????????????#""" """##?????????# | | ???????????????????#" """##??????????? | | ???????????????????# ""#???????????# | | ???????????????????# ########??#### | | ???????????????????# ## ####""" | | ???????????????????# t """" | | ???????????????????# | | ??????????????????? # | | ???????????????????? | | ???????????????????? ; " " | | ???????????????????### ""## ##" | | ?????????????????????# ""#### ### | | ?????????????????????#" """"##??# #?? | | ?????????????????????#""" """#??## ### | | ?????????????????????## ""##??# "! | | ??????????????????????#"" """##???#" ! | | ??????????????????????##""" ##????#" " | | ???????????????????????##"""" ##?????#!!""!" | | ?????????????????????????## #??????####### | | ??????????????????????????##### ##????????????? | | ??????????????????????????????## #?????????????? | | ???????????????????????????????# ??????????????? | +----------------------------------------------------+ Best States ------------- Heat Dissipation 28 Energy Generation 10 Energy Capacity 250 Matter Stores 300 Matter Capacity 300 Sight Range 16 Terrain Scan Density 10 Additional Mass Support 12 Armor Coverage 225 Resistance: EX 25 Propulsion Shielding 33 Evasion (%) 42 Recoil Reduction 2 Item Schematics ----------------- Hcp. Storage Unit | -10/Materials | Hacked Med. Storage Unit | -10/Materials | Hacked Cmb. Airjet | -9/Materials | Scanalyzed Robot Schematics ------------------ None Fabricated ------------ Nothing Alien Tech Used ----------------- None Achievements -------------- None Challenges ------------ None Game ------ Seed ChainTrapDiverter Manual? 0 Play Time 00:45:56 Cumulative 189.4 hours Start 2020.09.28 @ 20:46:09 End 2020.09.30 @ 14:35:44 Sessions 2 Manual Loads 0 Difficulty Rogue Special Mode None Game No. 215 Rogue 215 Adventurer 0 Explorer 0 Win Type - Total 2 Types 2/0/0/0/0/0/0/0/0 Lore% 61 Gallery% 74 Achievement% 56 Wizard Run 0 Options --------- ASCII 0 Keyboard 0 Movement Numpad Keybinds 0 Fullscreen 2 Font 24/Smallcaps Map View 76x50 Tactical HUD 1 Map Filters NONE Filters NONE Steam 1 RUN: 14605a6d-5d44-48ed-92c6-9550095d4f1b